[Event "POL-chT 2nd League-3 2020"]
[Site "Poronin"]
[Date "2020.09.07"]
[Round "3.3"]
[White "Parol, Pola"]
[Black "Klimkowski, Jan"]
[Result "0-1"]
[ECO "B51"]
[WhiteElo "2076"]
[BlackElo "2237"]
[Annotator "ChessBase"]
[PlyCount "110"]
[EventDate "2020.09.05"]
[EventType "team-tourn"]
[EventCountry "POL"]
[SourceTitle "playchess.com"]
[Source "ChessBase"]
[SourceQuality "1"]
[TimeControl "40/5400+30:900+30"]

1. e4 {[%emt 0:00:00]} c5 {[%emt 0:00:00]} 2. Nf3 {[%emt 0:00:00]} d6 {[%emt 0:00:00]} 3. Bb5+ {[%emt 0:00:09]} Nd7 {[%emt 0:00:00]} 4. c3 {[%emt 0:00:31]} Ngf6 {[%emt 0:00:57]} 5. Qe2 {[%emt 0:00:27]} a6 {[%emt 0:00:57]} 6. Ba4 {[%emt 0:00:08]} e6 {[%emt 0:01:36]} 7. O-O {[%emt 0:01:25]} b5 8. Bc2 c4 {[%emt 0:01:15]} 9. a4 {[%emt 0:04:33]} Bb7 {[%emt 0:00:18]} 10. d4 {[%emt 0:11:55]} cxd3 {[%emt 0:00:52]} 11. Bxd3 {[%emt 0:00:55]} Nc5 {[%emt 0:04:30]} 12. axb5 {[%emt 0:10:26]} Nxd3 {[%emt 0:00:53]} 13. Qxd3 {[%emt 0:00:12]} Bxe4 14. Qe2 {[%emt 0:00:47]} axb5 {[%emt 0:00:52]} 15. Qxb5+ {[%emt 0:02:37]} Nd7 {[%emt 0:00:47]} 16. Rxa8 {[%emt 0:02:16]} Qxa8 17. Nbd2 {[%emt 0:00:54]} Bc6 {[%emt 0:01:03]} 18. Qd3 {[%emt 0:02:47]} Be7 {[%emt 0:01:40]} 19. Re1 {[%emt 0:09:31]} O-O {[%emt 0:04:48]} 20. b4 {[%emt 0:06:24]} e5 {[%emt 0:04:57]} 21. Bb2 {[%emt 0:06:59]} Rb8 {[%emt 0:10:27]} 22. Ra1 {[%emt 0:04:49]} Qb7 {[%emt 0:01:18]} 23. Qa6 {[%emt 0:02:04]} Qc7 24. Qa7 {[%emt 0:01:16]} Qc8 {[%emt 0:03:55]} 25. Qa6 {[%emt 0:02:25]} Bb7 {[%emt 0:01:07]} 26. Qe2 {[%emt 0:01:21]} Nf8 27. Nb3 {[%emt 0:12:14]} Ng6 {[%emt 0:03:26]} 28. Ne1 {[%emt 0:01:44]} Nf4 {[%emt 0:00:42]} 29. Qd1 {[%emt 0:00:55]} Qf5 {[%emt 0:05:43]} 30. f3 {[%emt 0:02:30]} h5 {[%emt 0:06:00]} 31. Na5 {[%emt 0:02:06]} Ba8 {[%emt 0:01:30]} 32. Bc1 {[%emt 0:02:35]} h4 {[%emt 0:01:32]} 33. Bxf4 {[%emt 0:01:22]} exf4 {[%emt 0:00:22]} 34. h3 {[%emt 0:00:56]} Bf6 {[%emt 0:02:08]} 35. Rc1 {[%emt 0:00:51]} Qe6 {[%emt 0:02:16]} 36. Qd3 {[%emt 0:02:42]} Re8 {[%emt 0:01:51]} 37. Nc2 {[%emt 0:00:58]} Bd8 {[%emt 0:08:26]} 38. Nd4 {[%emt 0:02:37]} Bb6 {[%emt 0:03:29]} 39. Kh1 {[%emt 0:00:38]} Qe7 {[%emt 0:07:29]} 40. Nc4 {[%emt 0:00:00]} Ba7 {[%emt 0:00:00]} 41. Nf5 {[%emt 0:04:03]} Qe1+ {[%emt 0:03:26]} 42. Qf1 {[%emt 0:00:46]} Qxf1+ {[%emt 0:00:25]} 43. Rxf1 {[%emt 0:00:03]} d5 {[%emt 0:02:03]} 44. Ncd6 {[%emt 0:01:24]} Rb8 {[%emt 0:01:19]} 45. Re1 {[%emt 0:02:18]} g6 {[%emt 0:01:37]} 46. Nh6+ {[%emt 0:03:04]} Kf8 {[%emt 0:01:57]} 47. Nhxf7 {[%emt 0:02:16]} Be3 {[%emt 0:01:59]} 48. Ra1 {[%emt 0:04:04]} Ke7 {[%emt 0:04:35]} 49. Ra6 {[%emt 0:01:16]} d4 {[%emt 0:01:11]} 50. Ne5 {[%emt 0:02:48]} dxc3 {[%emt 0:00:41]} 51. Nxg6+ {[%emt 0:00:31]} Kd7 {[%emt 0:03:09]} 52. Ne5+ {[%emt 0:00:30]} Kc7 {[%emt 0:00:38]} 53. Ne4 {[%emt 0:00:49]} c2 {[%emt 0:00:43]} 54. Nd3 {[%emt 0:00:22]} Rxb4 {[%emt 0:01:04]} 55. Ra1 {[%emt 0:00:45]} Rb1+ {[%emt 0:00:05]} 0-1

[Event "POL-chT 2nd League-3 2020"]
[Site "Poronin"]
[Date "2020.09.07"]
[Round "3.4"]
[White "Leskiewicz, Ignacy"]
[Black "Kowalec, Maciej"]
[Result "1/2-1/2"]
[ECO "C08"]
[WhiteElo "2157"]
[BlackElo "2092"]
[Annotator "ChessBase"]
[PlyCount "45"]
[EventDate "2020.09.05"]
[EventType "team-tourn"]
[EventCountry "POL"]
[SourceTitle "playchess.com"]
[Source "ChessBase"]
[SourceQuality "1"]
[TimeControl "40/5400+30:900+30"]

1. e4 {[%emt 0:00:00]} e6 {[%emt 0:00:00]} 2. d4 {[%emt 0:00:00]} d5 {[%emt 0:00:00]} 3. Nd2 {[%emt 0:00:00]} c5 {[%emt 0:00:00]} 4. exd5 {[%emt 0:00:00]} exd5 {[%emt 0:00:00]} 5. dxc5 {[%emt 0:00:04]} Bxc5 {[%emt 0:00:34]} 6. Nb3 {[%emt 0:00:10]} Bb6 {[%emt 0:00:44]} 7. Nf3 {[%emt 0:01:11]} Nc6 {[%emt 0:01:41]} 8. Be2 {[%emt 0:02:14]} Nge7 {[%emt 0:01:44]} 9. Bf4 {[%emt 0:05:08]} Be6 {[%emt 0:01:51]} 10. c3 {[%emt 0:00:48]} O-O {[%emt 0:05:23]} 11. O-O {[%emt 0:05:20]} Ng6 {[%emt 0:07:02]} 12. Bd2 {[%emt 0:13:07]} Re8 {[%emt 0:04:06]} 13. Re1 {[%emt 0:07:05]} Bf5 {[%emt 0:04:37]} 14. Bf1 {[%emt 0:07:39]} Be4 {[%emt 0:07:09]} 15. Be3 {[%emt 0:08:50]} Nge5 {[%emt 0:07:43]} 16. Nbd4 {[%emt 0:20:05]} Qf6 {[%emt 0:09:33]} 17. Nxe5 {[%emt 0:03:39]} Nxe5 {[%emt 0:02:56]} 18. Qh5 {[%emt 0:01:15]} Bg6 {[%emt 0:08:01]} 19. Qg5 {[%emt 0:03:10]} Qxg5 20. Bxg5 {[%emt 0:00:01]} f6 {[%emt 0:08:22]} 21. Be3 {[%emt 0:01:02]} Nc4 {[%emt 0:01:41]} 22. Bxc4 {[%emt 0:01:15]} dxc4 {[%emt 0:00:06]} 23. f3 {[%emt 0:00:20]} 1/2-1/2

[Event "POL-chT 2nd League-3 2020"]
[Site "Poronin"]
[Date "2020.09.07"]
[Round "3.8"]
[White "Baum, Jonasz"]
[Black "Dzikowski, Michal"]
[Result "1/2-1/2"]
[ECO "B12"]
[WhiteElo "2299"]
[BlackElo "2144"]
[Annotator "ChessBase"]
[PlyCount "117"]
[EventDate "2020.09.05"]
[EventType "team-tourn"]
[EventCountry "POL"]
[SourceTitle "playchess.com"]
[Source "ChessBase"]
[SourceQuality "1"]
[TimeControl "40/5400+30:900+30"]

1. e4 {[%emt 0:00:00]} c6 {[%emt 0:00:00]} 2. d4 {[%emt 0:00:00]} d5 {[%emt 0:00:00]} 3. e5 {[%emt 0:00:00]} Bf5 {[%emt 0:00:02]} 4. h4 {[%emt 0:00:00]} h5 {[%emt 0:00:08]} 5. Bd3 {[%emt 0:00:07]} Bxd3 {[%emt 0:01:25]} 6. Qxd3 {[%emt 0:00:06]} e6 {[%emt 0:00:59]} 7. Bg5 {[%emt 0:00:07]} Qb6 {[%emt 0:08:20]} 8. Nd2 {[%emt 0:01:10]} Qa6 {[%emt 0:12:21]} 9. c4 {[%emt 0:00:42]} Ne7 {[%emt 0:15:19]} 10. b3 {[%emt 0:09:46]} Nd7 {[%emt 0:04:30]} 11. Ngf3 {[%emt 0:02:55]} Nf5 {[%emt 0:05:42]} 12. O-O {[%emt 0:04:59]} c5 {[%emt 0:06:55]} 13. Qc2 {[%emt 0:11:14]} cxd4 {[%emt 0:07:07]} 14. cxd5 {[%emt 0:00:22]} d3 {[%emt 0:00:28]} 15. Qc7 {[%emt 0:05:12]} Qb6 {[%emt 0:08:30]} 16. Qc3 {[%emt 0:07:57]} exd5 {[%emt 0:08:44]} 17. Rac1 {[%emt 0:18:49]} Nc5 {[%emt 0:03:36]} 18. b4 {[%emt 0:00:50]} Ne6 {[%emt 0:10:31]} 19. Qxd3 {[%emt 0:00:53]} Ne7 {[%emt 0:00:22]} 20. a3 {[%emt 0:06:24]} Qa6 {[%emt 0:02:21]} 21. Qb3 {[%emt 0:05:26]} b5 {[%emt 0:01:11]} 22. Rc2 {[%emt 0:04:13]} Qb7 {[%emt 0:00:47]} 23. Rfc1 {[%emt 0:00:37]} Nc8 {[%emt 0:00:55]} 24. Qd3 {[%emt 0:01:32]} Be7 {[%emt 0:00:30]} 25. Bxe7 {[%emt 0:02:22]} Nxe7 {[%emt 0:00:42]} 26. Ng5 {[%emt 0:04:31]} Qb6 {[%emt 0:00:54]} 27. Ndf3 {[%emt 0:00:58]} Nf4 {[%emt 0:00:34]} 28. Qd2 {[%emt 0:00:39]} Nfg6 {[%emt 0:00:24]} 29. Nxf7 {[%emt 0:10:44]} Kxf7 {[%emt 0:00:06]} 30. Ng5+ {[%emt 0:00:13]} Ke8 {[%emt 0:00:36]} 31. e6 {[%emt 0:01:55]} Rf8 {[%emt 0:00:34]} 32. Rc5 {[%emt 0:00:17]} Rf6 {[%emt 0:00:41]} 33. g3 {[%emt 0:00:53]} Rd8 {[%emt 0:00:41]} 34. Qe2 {[%emt 0:00:34]} a6 {[%emt 0:00:29]} 35. Qxh5 {[%emt 0:00:16]} Rxe6 {[%emt 0:00:18]} 36. Nxe6 {[%emt 0:00:19]} Qxe6 {[%emt 0:00:02]} 37. R5c2 {[%emt 0:00:38]} Kf8 {[%emt 0:00:42]} 38. Qd1 {[%emt 0:00:46]} Qf6 {[%emt 0:00:53]} 39. Re2 {[%emt 0:00:28]} Ne5 {[%emt 0:00:29]} 40. f4 {[%emt 0:00:00]} Nc4 {[%emt 0:00:00]} 41. Qd3 {[%emt 0:01:33]} Nf5 {[%emt 0:04:37]} 42. Rce1 {[%emt 0:00:54]} Qd4+ {[%emt 0:00:30]} 43. Qxd4 {[%emt 0:00:46]} Nxd4 {[%emt 0:00:08]} 44. Rf2 {[%emt 0:00:04]} Nf5 {[%emt 0:02:43]} 45. Rf3 {[%emt 0:01:05]} d4 {[%emt 0:01:40]} 46. Rd3 {[%emt 0:00:27]} Kf7 {[%emt 0:02:04]} 47. Kf2 {[%emt 0:01:15]} Nfe3 {[%emt 0:01:55]} 48. Kf3 {[%emt 0:03:42]} Nc2 {[%emt 0:01:06]} 49. Re2 {[%emt 0:03:03]} N4xa3 {[%emt 0:02:24]} 50. f5 {[%emt 0:00:29]} Rd6 {[%emt 0:02:22]} 51. Kf4 {[%emt 0:00:42]} g6 {[%emt 0:01:32]} 52. g4 {[%emt 0:01:03]} gxf5 {[%emt 0:00:25]} 53. gxf5 {[%emt 0:00:26]} Rh6 {[%emt 0:00:25]} 54. Kg5 {[%emt 0:00:30]} Rh8 {[%emt 0:00:01]} 55. f6 {[%emt 0:00:57]} Rg8+ {[%emt 0:00:28]} 56. Kh5 {[%emt 0:02:26]} Rh8+ {[%emt 0:00:34]} 57. Kg5 {[%emt 0:00:04]} Rg8+ {[%emt 0:00:11]} 58. Kh5 {[%emt 0:00:01]} Rh8+ {[%emt 0:00:59]} 59. Kg5 {[%emt 0:00:04]} 1/2-1/2

[Event "POL-chT 2nd League-3 2020"]
[Site "Poronin"]
[Date "2020.09.07"]
[Round "3.9"]
[White "Mondrzycki, Bartlomiej"]
[Black "Malicka, Maria"]
[Result "0-1"]
[ECO "E19"]
[WhiteElo "2167"]
[BlackElo "2256"]
[Annotator "ChessBase"]
[PlyCount "82"]
[EventDate "2020.09.05"]
[EventType "team-tourn"]
[EventCountry "POL"]
[SourceTitle "playchess.com"]
[Source "ChessBase"]
[SourceQuality "1"]
[TimeControl "40/5400+30:900+30"]

1. Nf3 {[%emt 0:00:00]} Nf6 {[%emt 0:00:00]} 2. c4 {[%emt 0:00:00]} e6 {[%emt 0:00:00]} 3. g3 {[%emt 0:00:00]} a6 {[%emt 0:00:00]} 4. Bg2 {[%emt 0:01:13]} b5 {[%emt 0:00:00]} 5. b3 {[%emt 0:12:06]} Bb7 {[%emt 0:00:02]} 6. O-O {[%emt 0:00:29]} Be7 {[%emt 0:00:06]} 7. Bb2 {[%emt 0:10:40]} c5 {[%emt 0:00:18]} 8. d3 {[%emt 0:03:52]} O-O {[%emt 0:02:07]} 9. Nbd2 {[%emt 0:10:06]} d6 {[%emt 0:01:51]} 10. d4 {[%emt 0:07:40]} Nc6 {[%emt 0:07:01]} 11. dxc5 {[%emt 0:09:50]} dxc5 {[%emt 0:00:08]} 12. Ne5 {[%emt 0:00:06]} Qb6 {[%emt 0:03:13]} 13. Nxc6 {[%emt 0:06:26]} Bxc6 {[%emt 0:00:05]} 14. Bxc6 {[%emt 0:00:02]} Qxc6 {[%emt 0:00:06]} 15. Qc2 {[%emt 0:00:03]} Rfd8 {[%emt 0:04:11]} 16. Rfd1 {[%emt 0:02:58]} b4 {[%emt 0:04:35]} 17. Nf3 {[%emt 0:12:37]} Qe4 {[%emt 0:09:31]} 18. Qxe4 {[%emt 0:01:31]} Nxe4 {[%emt 0:00:02]} 19. Ne5 {[%emt 0:00:28]} Bf6 {[%emt 0:00:29]} 20. Rac1 {[%emt 0:03:09]} Kf8 {[%emt 0:14:42]} 21. f3 {[%emt 0:01:33]} Nd6 {[%emt 0:11:59]} 22. Rd3 {[%emt 0:01:45]} Rac8 {[%emt 0:04:26]} 23. Rcd1 {[%emt 0:00:33]} Ke7 {[%emt 0:00:40]} 24. Kf2 {[%emt 0:03:04]} a5 {[%emt 0:02:47]} 25. g4 {[%emt 0:03:22]} Bh4+ {[%emt 0:01:54]} 26. Ke3 {[%emt 0:08:21]} f6 {[%emt 0:00:09]} 27. f4 {[%emt 0:00:02]} fxe5 {[%emt 0:00:35]} 28. Bxe5 {[%emt 0:00:02]} Ne8 {[%emt 0:01:54]} 29. Kf3 {[%emt 0:01:43]} Bf6 {[%emt 0:00:51]} 30. Rxd8 {[%emt 0:00:19]} Rxd8 {[%emt 0:00:04]} 31. Rxd8 {[%emt 0:00:09]} Kxd8 {[%emt 0:00:04]} 32. Bb8 {[%emt 0:00:06]} Kc8 {[%emt 0:01:42]} 33. Be5 {[%emt 0:01:15]} Bxe5 {[%emt 0:00:08]} 34. fxe5 {[%emt 0:00:02]} Kd7 {[%emt 0:02:09]} 35. g5 {[%emt 0:00:28]} Nc7 {[%emt 0:01:04]} 36. Ke4 {[%emt 0:00:24]} Na8 {[%emt 0:01:39]} 37. Ke3 {[%emt 0:00:23]} Nb6 {[%emt 0:00:09]} 38. Ke4 {[%emt 0:00:26]} a4 {[%emt 0:00:29]} 39. Ke3 {[%emt 0:00:24]} Nxc4+ {[%emt 0:01:09]} 40. bxc4 {[%emt 0:00:00]} b3 {[%emt 0:00:00]} 41. axb3 {[%emt 0:00:30]} a3 {[%emt 0:00:05]} 0-1

[Event "POL-chT 2nd League-3 2020"]
[Site "Poronin"]
[Date "2020.09.07"]
[Round "3.10"]
[White "Jarzebowski, Kacper"]
[Black "Zareba, Radoslaw"]
[Result "1/2-1/2"]
[ECO "B04"]
[WhiteElo "2061"]
[BlackElo "2111"]
[Annotator "ChessBase"]
[PlyCount "88"]
[EventDate "2020.09.05"]
[EventType "team-tourn"]
[EventCountry "POL"]
[SourceTitle "playchess.com"]
[Source "ChessBase"]
[SourceQuality "1"]
[TimeControl "40/5400+30:900+30"]

1. e4 {[%emt 0:00:00]} Nf6 {[%emt 0:05:51]} 2. e5 {[%emt 0:00:32]} Nd5 {[%emt 0:00:07]} 3. d4 {[%emt 0:00:07]} d6 {[%emt 0:00:11]} 4. Nf3 {[%emt 0:00:07]} g6 {[%emt 0:00:53]} 5. Be2 {[%emt 0:00:19]} Bg7 {[%emt 0:00:27]} 6. O-O {[%emt 0:01:26]} O-O {[%emt 0:00:22]} 7. c4 {[%emt 0:00:30]} Nb6 {[%emt 0:00:34]} 8. Nc3 {[%emt 0:04:14]} Bg4 {[%emt 0:04:02]} 9. exd6 {[%emt 0:01:01]} cxd6 {[%emt 0:00:53]} 10. h3 {[%emt 0:00:33]} Bxf3 {[%emt 0:01:03]} 11. Bxf3 {[%emt 0:00:12]} Nc6 {[%emt 0:00:15]} 12. Bxc6 {[%emt 0:01:02]} bxc6 {[%emt 0:00:21]} 13. Qd3 {[%emt 0:07:08]} d5 {[%emt 0:09:50]} 14. c5 {[%emt 0:00:57]} Nd7 {[%emt 0:00:49]} 15. f4 {[%emt 0:00:43]} Rb8 {[%emt 0:03:03]} 16. Ne2 {[%emt 0:13:37]} Nf6 {[%emt 0:03:28]} 17. a3 {[%emt 0:04:36]} Qa5 {[%emt 0:03:28]} 18. b4 {[%emt 0:05:26]} Qc7 {[%emt 0:07:13]} 19. Rb1 {[%emt 0:03:09]} Ne4 {[%emt 0:01:08]} 20. f5 {[%emt 0:11:36]} e5 {[%emt 0:12:44]} 21. fxe6 {[%emt 0:02:41]} fxe6 {[%emt 0:00:34]} 22. Bf4 {[%emt 0:01:47]} e5 {[%emt 0:01:48]} 23. Bxe5 {[%emt 0:00:16]} Bxe5 {[%emt 0:01:45]} 24. dxe5 {[%emt 0:00:03]} Qxe5 {[%emt 0:02:43]} 25. Nd4 {[%emt 0:05:15]} Rxf1+ {[%emt 0:13:18]} 26. Rxf1 {[%emt 0:00:15]} Ng3 {[%emt 0:05:48]} 27. Nf3 {[%emt 0:28:42]} Qe4 {[%emt 0:01:18]} 28. Rd1 {[%emt 0:00:27]} Re8 {[%emt 0:09:07]} 29. Qxe4 {[%emt 0:04:18]} dxe4 {[%emt 0:03:29]} 30. Kf2 {[%emt 0:01:50]} Nf5 {[%emt 0:03:27]} 31. g4 {[%emt 0:00:13]} e3+ {[%emt 0:02:21]} 32. Ke1 {[%emt 0:01:00]} Ng3 {[%emt 0:00:26]} 33. Rd3 {[%emt 0:00:43]} h5 {[%emt 0:01:11]} 34. Nd4 {[%emt 0:00:48]} hxg4 {[%emt 0:01:32]} 35. hxg4 {[%emt 0:00:01]} Rd8 {[%emt 0:01:15]} 36. Rxe3 {[%emt 0:01:02]} Rxd4 {[%emt 0:00:07]} 37. Rxg3 {[%emt 0:00:05]} a5 {[%emt 0:00:11]} 38. bxa5 {[%emt 0:01:35]} Ra4 {[%emt 0:00:34]} 39. Rc3 {[%emt 0:00:31]} Rxg4 {[%emt 0:00:36]} 40. Rb3 {[%emt 0:00:00]} Ra4 {[%emt 0:00:00]} 41. Rb6 {[%emt 0:02:27]} Rxa5 {[%emt 0:01:56]} 42. Rxc6 {[%emt 0:00:02]} Kf7 {[%emt 0:00:19]} 43. Rc7+ {[%emt 0:02:39]} Ke6 {[%emt 0:00:26]} 44. c6 {[%emt 0:00:18]} Kd5 1/2-1/2

[Event "POL-chT 2nd League-3 2020"]
[Site "Poronin"]
[Date "2020.09.07"]
[Round "3.11"]
[White "Stelmaszuk, Maciej"]
[Black "Dalkowski, Rafal"]
[Result "1-0"]
[ECO "A14"]
[WhiteElo "1976"]
[BlackElo "1859"]
[Annotator "ChessBase"]
[PlyCount "161"]
[EventDate "2020.09.05"]
[EventType "team-tourn"]
[EventCountry "POL"]
[SourceTitle "playchess.com"]
[Source "ChessBase"]
[SourceQuality "1"]
[TimeControl "40/5400+30:900+30"]

1. Nf3 {[%emt 0:00:00]} Nf6 {[%emt 0:00:00]} 2. c4 {[%emt 0:00:00]} e6 {[%emt 0:01:07]} 3. g3 {[%emt 0:01:02]} d5 {[%emt 0:02:28]} 4. Bg2 {[%emt 0:00:45]} Be7 {[%emt 0:00:17]} 5. O-O {[%emt 0:00:40]} O-O {[%emt 0:00:03]} 6. d4 {[%emt 0:01:00]} c5 {[%emt 0:01:31]} 7. cxd5 {[%emt 0:05:52]} exd5 {[%emt 0:00:40]} 8. dxc5 {[%emt 0:03:13]} Bxc5 {[%emt 0:00:25]} 9. Nbd2 {[%emt 0:00:14]} Nc6 {[%emt 0:01:05]} 10. Nb3 {[%emt 0:01:46]} Bb6 {[%emt 0:01:25]} 11. Nbd4 {[%emt 0:03:10]} Bg4 {[%emt 0:02:44]} 12. Nxc6 {[%emt 0:05:18]} bxc6 {[%emt 0:00:16]} 13. Ne5 {[%emt 0:01:15]} Bd7 {[%emt 0:03:42]} 14. Bg5 {[%emt 0:02:36]} Rc8 {[%emt 0:02:13]} 15. Nxd7 {[%emt 0:11:34]} Qxd7 {[%emt 0:00:14]} 16. Bxf6 {[%emt 0:00:10]} gxf6 {[%emt 0:00:20]} 17. e3 {[%emt 0:00:15]} Qf5 {[%emt 0:02:12]} 18. a4 {[%emt 0:08:29]} Rfd8 {[%emt 0:05:07]} 19. a5 {[%emt 0:00:40]} Bc5 {[%emt 0:01:48]} 20. Ra4 {[%emt 0:03:04]} Qe5 {[%emt 0:33:33]} 21. Rg4+ {[%emt 0:10:15]} Kh8 {[%emt 0:00:49]} 22. b4 {[%emt 0:02:11]} Be7 {[%emt 0:02:49]} 23. Qd3 {[%emt 0:02:29]} Rb8 {[%emt 0:14:37]} 24. Rb1 {[%emt 0:08:31]} Rg8 {[%emt 0:03:12]} 25. Rh4 {[%emt 0:03:38]} Rg7 {[%emt 0:04:03]} 26. Bh3 {[%emt 0:03:01]} Qg5 {[%emt 0:01:57]} 27. Kh1 {[%emt 0:14:46]} f5 {[%emt 0:04:08]} 28. Bxf5 {[%emt 0:00:52]} h6 {[%emt 0:01:08]} 29. Bd7 {[%emt 0:01:51]} Qf6 {[%emt 0:00:27]} 30. Rf4 {[%emt 0:02:04]} Qd6 {[%emt 0:00:59]} 31. Bh3 {[%emt 0:00:15]} Rd8 {[%emt 0:03:47]} 32. Qf5 {[%emt 0:02:13]} Bg5 {[%emt 0:00:52]} 33. Rd4 {[%emt 0:01:23]} Rg6 {[%emt 0:01:09]} 34. Qc2 {[%emt 0:00:44]} Rb8 {[%emt 0:01:18]} 35. Bf5 {[%emt 0:00:32]} Rgg8 {[%emt 0:00:31]} 36. Rdd1 {[%emt 0:00:44]} Rgd8 {[%emt 0:01:05]} 37. f4 {[%emt 0:00:24]} Be7 {[%emt 0:00:32]} 38. Bd3 {[%emt 0:01:17]} Rdc8 {[%emt 0:01:31]} 39. Bf5 {[%emt 0:00:20]} Rc7 {[%emt 0:00:31]} 40. e4 {[%emt 0:00:00]} Rcb7 {[%emt 0:00:00]} 41. exd5 {[%emt 0:01:54]} cxd5 {[%emt 0:04:33]} 42. Be4 {[%emt 0:07:04]} Rxb4 {[%emt 0:00:31]} 43. Rxb4 {[%emt 0:00:57]} Qxb4 {[%emt 0:01:03]} 44. Bxd5 {[%emt 0:01:58]} Kg7 {[%emt 0:03:00]} 45. Qf5 {[%emt 0:00:53]} Rf8 {[%emt 0:04:09]} 46. Be4 {[%emt 0:01:11]} Rh8 {[%emt 0:00:26]} 47. Kg2 {[%emt 0:02:35]} h5 {[%emt 0:01:21]} 48. Bd5 {[%emt 0:00:41]} Qb2+ {[%emt 0:01:59]} 49. Kf3 {[%emt 0:01:52]} Qf6 {[%emt 0:01:04]} 50. Qxf6+ {[%emt 0:01:15]} Kxf6 {[%emt 0:00:08]} 51. Rc1 {[%emt 0:00:19]} Rb8 {[%emt 0:00:34]} 52. Rc6+ {[%emt 0:00:09]} Kg7 {[%emt 0:01:12]} 53. Rc7 {[%emt 0:00:00]} Kf6 {[%emt 0:00:25]} 54. Rxa7 {[%emt 0:00:00]} Rb5 {[%emt 0:00:20]} 55. Be4 {[%emt 0:00:47]} Rb2 {[%emt 0:00:32]} 56. Ra6+ {[%emt 0:01:34]} Kg7 {[%emt 0:00:13]} 57. Rc6 {[%emt 0:00:23]} Rxh2 {[%emt 0:04:11]} 58. a6 {[%emt 0:00:22]} Ra2 {[%emt 0:00:04]} 59. Bd5 {[%emt 0:00:26]} Ra3+ {[%emt 0:00:12]} 60. Kg2 {[%emt 0:01:25]} Bd8 {[%emt 0:00:08]} 61. Bc4 {[%emt 0:00:26]} f6 {[%emt 0:00:47]} 62. Rc8 {[%emt 0:00:22]} Bb6 {[%emt 0:00:07]} 63. Rg8+ {[%emt 0:00:14]} Kh7 {[%emt 0:00:15]} 64. Rb8 {[%emt 0:00:13]} Bd4 {[%emt 0:00:08]} 65. Rd8 {[%emt 0:00:49]} Be3 {[%emt 0:00:34]} 66. Bd3+ {[%emt 0:00:33]} Kg7 {[%emt 0:00:19]} 67. Rd7+ {[%emt 0:00:08]} Kf8 {[%emt 0:00:17]} 68. Bc4 {[%emt 0:00:34]} Ra4 {[%emt 0:00:42]} 69. Bd3 {[%emt 0:00:54]} Ra3 {[%emt 0:00:45]} 70. Kf3 {[%emt 0:00:12]} Bg1 {[%emt 0:00:28]} 71. Ke4 {[%emt 0:00:17]} Ra5 {[%emt 0:00:21]} 72. Bc4 {[%emt 0:00:31]} Bf2 {[%emt 0:01:08]} 73. Kf3 {[%emt 0:00:21]} Bg1 {[%emt 0:00:12]} 74. Rf7+ {[%emt 0:00:32]} Ke8 {[%emt 0:00:10]} 75. Rxf6 {[%emt 0:00:14]} Ke7 {[%emt 0:00:20]} 76. Rh6 {[%emt 0:01:01]} Bd4 {[%emt 0:00:12]} 77. Bd3 {[%emt 0:00:52]} Bg1 {[%emt 0:00:33]} 78. f5 {[%emt 0:00:19]} Ra3 {[%emt 0:00:24]} 79. Ke2 {[%emt 0:00:48]} Ra2+ {[%emt 0:00:26]} 80. Kd1 {[%emt 0:00:17]} Be3 {[%emt 0:00:08]} 81. Re6+ {[%emt 0:00:05]} 1-0

[Event "POL-chT 2nd League-3 2020"]
[Site "Poronin"]
[Date "2020.09.07"]
[Round "3.12"]
[White "Tarka, Aleksandra"]
[Black "Jablonska, Sabina"]
[Result "1/2-1/2"]
[ECO "B00"]
[WhiteElo "1586"]
[BlackElo "1960"]
[Annotator "ChessBase"]
[PlyCount "83"]
[EventDate "2020.09.05"]
[EventType "team-tourn"]
[EventCountry "POL"]
[SourceTitle "playchess.com"]
[Source "ChessBase"]
[SourceQuality "1"]
[TimeControl "40/5400+30:900+30"]

1. e4 {[%emt 0:00:00]} b6 {[%emt 0:00:00]} 2. g3 {[%emt 0:00:24]} Bb7 {[%emt 0:00:00]} 3. Bg2 {[%emt 0:00:10]} e6 {[%emt 0:01:17]} 4. f4 {[%emt 0:03:45]} Ne7 {[%emt 0:09:43]} 5. d3 {[%emt 0:08:41]} d5 {[%emt 0:08:33]} 6. Qe2 {[%emt 0:16:21]} dxe4 {[%emt 0:15:02]} 7. dxe4 {[%emt 0:02:50]} Nd7 {[%emt 0:02:11]} 8. Be3 {[%emt 0:09:51]} c6 {[%emt 0:06:48]} 9. Nd2 {[%emt 0:08:36]} Qc7 {[%emt 0:02:20]} 10. O-O-O {[%emt 0:04:27]} Nc8 {[%emt 0:04:58]} 11. Nb3 {[%emt 0:08:29]} a5 {[%emt 0:07:00]} 12. Nf3 {[%emt 0:04:53]} Ba6 {[%emt 0:05:12]} 13. Qf2 {[%emt 0:05:59]} Nd6 {[%emt 0:05:22]} 14. e5 {[%emt 0:04:04]} Nc4 {[%emt 0:02:06]} 15. Bd4 {[%emt 0:02:07]} a4 {[%emt 0:06:46]} 16. Nbd2 {[%emt 0:00:06]} Nc5 {[%emt 0:00:21]} 17. Bf1 {[%emt 0:01:22]} Nxd2 {[%emt 0:06:27]} 18. Qxd2 {[%emt 0:00:06]} Bb7 {[%emt 0:01:17]} 19. Qe3 {[%emt 0:01:10]} Nd7 {[%emt 0:02:23]} 20. f5 {[%emt 0:05:15]} c5 {[%emt 0:05:16]} 21. Bc3 {[%emt 0:02:05]} Bd5 {[%emt 0:01:06]} 22. fxe6 {[%emt 0:04:33]} Bxe6 {[%emt 0:00:37]} 23. Kb1 {[%emt 0:00:46]} h6 {[%emt 0:01:56]} 24. Bb5 {[%emt 0:01:21]} Be7 {[%emt 0:01:16]} 25. Qe4 {[%emt 0:00:48]} Rd8 {[%emt 0:01:40]} 26. g4 {[%emt 0:00:58]} Kf8 {[%emt 0:01:03]} 27. h3 {[%emt 0:01:13]} c4 {[%emt 0:00:36]} 28. Nd4 {[%emt 0:01:09]} Nc5 {[%emt 0:01:05]} 29. Nxe6+ {[%emt 0:00:16]} Nxe6 {[%emt 0:00:17]} 30. Bxc4 {[%emt 0:00:40]} Qc8 {[%emt 0:01:08]} 31. Bxe6 {[%emt 0:01:34]} Qxe6 {[%emt 0:00:09]} 32. Rxd8+ {[%emt 0:00:47]} Bxd8 {[%emt 0:00:05]} 33. Rd1 {[%emt 0:00:29]} Qe8 {[%emt 0:00:46]} 34. Bb4+ {[%emt 0:00:43]} Kg8 {[%emt 0:00:07]} 35. Qd5 {[%emt 0:00:52]} Bg5 {[%emt 0:01:08]} 36. Qd6 {[%emt 0:00:32]} h5 {[%emt 0:00:27]} 37. Bc3 {[%emt 0:00:32]} Rh6 {[%emt 0:00:37]} 38. Qd4 {[%emt 0:00:17]} hxg4 {[%emt 0:00:32]} 39. Qxg4 {[%emt 0:00:25]} Rg6 {[%emt 0:00:19]} 40. Qf5 {[%emt 0:00:00]} Qc6 {[%emt 0:00:00]} 41. Rf1 {[%emt 0:03:44]} Qc4 {[%emt 0:02:35]} 42. Qf3 {[%emt 0:06:29]} 1/2-1/2